{"text_format":"1","workbook":"xlsx","n_sheets":2,"sheets":["アセス入力シート","参加支援事業"],"not_rendered":{"charts":0,"images":0,"macros":1,"external_links":0,"defined_names":2,"comments":1,"pivot_tables":0},"unopened":[],"bounds":{"document_bytes":16777216,"sheet_cells":100000,"rows_first":2000,"rows_last":500,"rows_between":2000,"halvings":0,"cell_chars":16384,"cell_head_chars":4096},"cells_cut":0,"cells_raw":0,"read":"whole","date_system":"1900"}

{"sheet":"アセス入力シート","index":0,"n_rows":125,"n_cols":12,"rows_kept":125,"cut":false,"hidden":false,"merged":[[6,0,34,0],[3,0,5,0]]}
[]
[]
[]
["性別等"," 性別　（１．男　２．女　３．不明・その他）",null,null,null,null,null,null,null,null,1,1]
[null,"年齢",null,null,null,null,null,null,null,null,"不明",2]
[null,"\n相談受付日",null,null,null,null,null,null,null,null,null,3]
["本人が抱える課題（当てはまるものすべて）","病気"]
[null,"けが"]
[null,"障害（手帳有）"]
[null,"障害（疑い）"]
[null,"自殺企図"]
[null,"その他メンタルヘルス（うつ・不眠・不安・依存症・適応障害）"]
[null,"住まい不安定"]
[null,"ホームレス"]
[null,"経済的困窮",null,null,null,null,null,null,null,null,0]
[null,"（多重・過重）債務",null,null,null,null,null,null,null,null,1]
[null,"家計管理の問題",null,null,null,null,null,null,null,null,2]
[null,"就職活動困難",null,null,null,null,null,null,null,null,3]
[null,"就職定着困難",null,null,null,null,null,null,null,null,4]
[null,"生活習慣の乱れ",null,null,null,null,null,null,null,null,5]
[null,"社会的孤立（ニート・ひきこもり含む）",null,null,null,null,null,null,null,null,6]
[null,"家族関係・家族の問題",null,null,null,null,null,null,null,null,7]
[null,"介護",null,null,null,null,null,null,null,null,8]
[null,"子育て",null,null,null,null,null,null,null,null,9]
[null,"不登校",null,null,null,null,null,null,null,null,10]
[null,"非行",null,null,null,null,null,null,null,null,11]
[null,"中卒・高校中退",null,null,null,null,null,null,null,null,12]
[null,"ひとり親",null,null,null,null,null,null,null,null,13]
[null,"DV・虐待",null,null,null,null,null,null,null,null,14]
[null,"外国籍",null,null,null,null,null,null,null,null,15]
[null,"刑余者",null,null,null,null,null,null,null,null,16]
[null,"コミュニケーションが苦手",null,null,null,null,null,null,null,null,17]
[null,"本人の能力の課題（識字・言語・理解等）",null,null,null,null,null,null,null,null,18]
[null,"被災",null,null,null,null,null,null,null,null,19]
[null,"その他（詳細記入）",null,null,null,null,null,null,null,null,20]
[null,null,null,null,null,null,null,null,null,null,21]
[null,null,null,null,null,null,null,null,null,null,22]
[null,null,null,null,null,null,null,null,null,null,23]
[null,null,null,null,null,null,null,null,null,null,24]
[null,null,null,null,null,null,null,null,null,null,25]
[null,null,null,null,null,null,null,null,null,null,26]
[null,null,null,null,null,null,null,null,null,null,27]
[null,null,null,null,null,null,null,null,null,null,28]
[null,null,null,null,null,null,null,null,null,null,29]
[null,null,null,null,null,null,null,null,null,null,30]
[null,null,null,null,null,null,null,null,null,null,31]
[null,null,null,null,null,null,null,null,null,null,32]
[null,null,null,null,null,null,null,null,null,null,33]
[null,null,null,null,null,null,null,null,null,null,34]
[null,null,null,null,null,null,null,null,null,null,35]
[null,null,null,null,null,null,null,null,null,null,36]
[null,null,null,null,null,null,null,null,null,null,37]
[null,null,null,null,null,null,null,null,null,null,38]
[null,null,null,null,null,null,null,null,null,null,39]
[null,null,null,null,null,null,null,null,null,null,40]
[null,null,null,null,null,null,null,null,null,null,41]
[null,null,null,null,null,null,null,null,null,null,42]
[null,null,null,null,null,null,null,null,null,null,43]
[null,null,null,null,null,null,null,null,null,null,44]
[null,null,null,null,null,null,null,null,null,null,45]
[null,null,null,null,null,null,null,null,null,null,46]
[null,null,null,null,null,null,null,null,null,null,47]
[null,null,null,null,null,null,null,null,null,null,48]
[null,null,null,null,null,null,null,null,null,null,49]
[null,null,null,null,null,null,null,null,null,null,50]
[null,null,null,null,null,null,null,null,null,null,51]
[null,null,null,null,null,null,null,null,null,null,52]
[null,null,null,null,null,null,null,null,null,null,53]
[null,null,null,null,null,null,null,null,null,null,54]
[null,null,null,null,null,null,null,null,null,null,55]
[null,null,null,null,null,null,null,null,null,null,56]
[null,null,null,null,null,null,null,null,null,null,57]
[null,null,null,null,null,null,null,null,null,null,58]
[null,null,null,null,null,null,null,null,null,null,59]
[null,null,null,null,null,null,null,null,null,null,60]
[null,null,null,null,null,null,null,null,null,null,61]
[null,null,null,null,null,null,null,null,null,null,62]
[null,null,null,null,null,null,null,null,null,null,63]
[null,null,null,null,null,null,null,null,null,null,64]
[null,null,null,null,null,null,null,null,null,null,65]
[null,null,null,null,null,null,null,null,null,null,66]
[null,null,null,null,null,null,null,null,null,null,67]
[null,null,null,null,null,null,null,null,null,null,68]
[null,null,null,null,null,null,null,null,null,null,69]
[null,null,null,null,null,null,null,null,null,null,70]
[null,null,null,null,null,null,null,null,null,null,71]
[null,null,null,null,null,null,null,null,null,null,72]
[null,null,null,null,null,null,null,null,null,null,73]
[null,null,null,null,null,null,null,null,null,null,74]
[null,null,null,null,null,null,null,null,null,null,75]
[null,null,null,null,null,null,null,null,null,null,76]
[null,null,null,null,null,null,null,null,null,null,77]
[null,null,null,null,null,null,null,null,null,null,78]
[null,null,null,null,null,null,null,null,null,null,79]
[null,null,null,null,null,null,null,null,null,null,80]
[null,null,null,null,null,null,null,null,null,null,81]
[null,null,null,null,null,null,null,null,null,null,82]
[null,null,null,null,null,null,null,null,null,null,83]
[null,null,null,null,null,null,null,null,null,null,84]
[null,null,null,null,null,null,null,null,null,null,85]
[null,null,null,null,null,null,null,null,null,null,86]
[null,null,null,null,null,null,null,null,null,null,87]
[null,null,null,null,null,null,null,null,null,null,88]
[null,null,null,null,null,null,null,null,null,null,89]
[null,null,null,null,null,null,null,null,null,null,90]
[null,null,null,null,null,null,null,null,null,null,91]
[null,null,null,null,null,null,null,null,null,null,92]
[null,null,null,null,null,null,null,null,null,null,93]
[null,null,null,null,null,null,null,null,null,null,94]
[null,null,null,null,null,null,null,null,null,null,95]
[null,null,null,null,null,null,null,null,null,null,96]
[null,null,null,null,null,null,null,null,null,null,97]
[null,null,null,null,null,null,null,null,null,null,98]
[null,null,null,null,null,null,null,null,null,null,99]
[null,null,null,null,null,null,null,null,null,null,"100～"]
[null,null,null,null,null,null,null,null,null,null,"10歳未満"]
[null,null,null,null,null,null,null,null,null,null,"10代"]
[null,null,null,null,null,null,null,null,null,null,"20代"]
[null,null,null,null,null,null,null,null,null,null,"30代"]
[null,null,null,null,null,null,null,null,null,null,"40代"]
[null,null,null,null,null,null,null,null,null,null,"50代"]
[null,null,null,null,null,null,null,null,null,null,"60代"]
[null,null,null,null,null,null,null,null,null,null,"70代"]
[null,null,null,null,null,null,null,null,null,null,"80代"]
[null,null,null,null,null,null,null,null,null,null,"90代"]

{"sheet":"参加支援事業","index":1,"n_rows":39,"n_cols":217,"rows_kept":39,"cut":false,"hidden":false,"merged":[[4,145,5,145],[4,143,5,143],[4,144,5,144],[4,139,5,139],[0,1,0,14],[2,2,2,3],[4,5,4,34],[4,35,4,39],[4,4,5,4],[4,3,5,3],[4,2,5,2],[4,40,4,52],[4,53,4,65],[4,66,4,78],[4,79,4,91],[4,134,4,138],[3,40,3,119],[4,119,5,119],[4,142,5,142],[4,141,5,141],[4,140,5,140],[4,92,4,104],[4,105,4,118],[4,120,4,133]]}
[null,"参加支援事業　（様式８）",null,null,null,null,null,null,null,null,null,null,null,null,null,null,null,null,null,null,null,null,null,null,null,null,null,null,null,null,null,null,null,null,null,null,null,null,null,null,null,null,null,null,null,null,null,null,null,null,null,null,null,null,null,null,null,null,null,null,null,null,null,null,null,null,null,null,null,null,null,null,null,null,null,null,null,null,null,null,null,null,null,null,null,null,null,null,null,null,null,null,null,null,null,null,null,null,null,null,null,null,null,null,null,null,null,null,null,null,null,null,null,null,null,null,null,null,null,null,null,null,null,null,null,null,null,null,null,null,null,null,null,null,null,null,null,null,null,null,null,null,null,null,null,null,null,null,null,null,null,null,null,null,null,null,null,null,null,null,null,null,null,null,null,null,null,null,null,null,null,null,null,null,null,null,null,null,null,null,null,null,null,null,null,null,null,null,null,null,null,null,null,null,null,null,null,null,null,null,null,null,null,null,null,null,null,null,null,null,null,null,null,null,null,null,"つながり指標"]
[]
[null,"自治体名",null,null,null,"報告月",null,"月"]
[null,null,null,null,null,null,null,null,null,null,null,null,null,null,null,null,null,null,null,null,null,null,null,null,null,null,null,null,null,null,null,null,null,null,null,null,null,null,null,null,"定着支援回数"]
[null,"ID"," 性別\n\n１．男\n２．女\n３．不明・その他","年齢","相談受付日","　　　本人が抱える課題（当てはまるものすべて）",null,null,null,null,null,null,null,null,null,null,null,null,null,null,null,null,null,null,null,null,null,null,null,null,null,null,null,null,null,"定着支援期間",null,null,null,null,"訪問（半角数字）",null,null,null,null,null,null,null,null,null,null,null,null,"面接（半角数字）",null,null,null,null,null,null,null,null,null,null,null,null,"メール（LINEやTwitter等のSNSを含む）\n（半角数字）",null,null,null,null,null,null,null,null,null,null,null,null,"電話（半角数字）",null,null,null,null,null,null,null,null,null,null,null,null,"手紙（半角数字）",null,null,null,null,null,null,null,null,null,null,null,null,"その他（半角数字）",null,null,null,null,null,null,null,null,null,null,null,null,null,"合計","本人につなげようとした場の数（半角数字）\n（つながらなかった数を含む）",null,null,null,null,null,null,null,null,null,null,null,null,null,null,null,null,null,null,"終結日","支援期間\n（終結日-初回受付日）\n\n※日数表記","支援期間\n（終結日-初回受付日）\n\n※月数表記","支援期間\n（終結日-初回受付日）\n\n※年数表記","①支援開始前関係機関数","②支援開始後関係機関数","増減②-①"]
[null,0,null,null,null,"病気","けが","障害（手帳有）","障害（疑い）","自殺企図","その他メンタルヘルス（うつ・不眠・不安・依存症・適応障害）","住まい不安定","ホームレス","経済的困窮","（多重・過重）債務","家計管理の問題","就職活動困難","就職定着困難","生活習慣の乱れ","社会的孤立（ニート・ひきこもり含む）","家族関係・家族の問題","介護","子育て","不登校","非行","中卒・高校中退","ひとり親","DV・虐待","外国籍","刑余者","コミュニケーションが苦手","本人の能力の課題（識字・言語・理解等）","被災","その他（詳細記入）","課題の数の合計（COUNT）","定着支援開始日","定着支援終結日","支援期間\n（終結日-開始日）\n\n※日数表記","支援期間\n（終結日-開始日）\n\n※月数表記","支援期間\n（終結日-開始日）\n\n※年数表記","４月","５月","６月","７月","８月","９月","１０月","１１月","１２月","１月","２月","３月","小計","４月","５月","６月","７月","８月","９月","１０月","１１月","１２月","１月","２月","３月","小計","４月","５月","６月","７月","８月","９月","１０月","１１月","１２月","１月","２月","３月","小計","４月","５月","６月","７月","８月","９月","１０月","１１月","１２月","１月","２月","３月","小計","４月","５月","６月","７月","８月","９月","１０月","１１月","１２月","１月","２月","３月","小計","４月","５月","６月","７月","８月","９月","１０月","１１月","１２月","１月","２月","３月","その他\n（自由記述）\n※適宜追記","小計",null,"４月","５月","６月","７月","８月","９月","１０月","１１月","１２月","１月","２月","３月","場の種類・名称\n（自由記述）\n※適宜追記","合計","初回プラン作成日","再プラン作成日（2回目）","再プラン作成日（3回目）","再プラン作成日（4回目）","再プラン作成日（5回目）"]
[null,null,null,null,null,null,null,null,null,null,null,null,null,null,null,null,null,null,null,null,null,null,null,null,null,null,null,null,null,null,null,null,null,null,{"$f":"COUNTA(F7:AG7)","v":0},null,null,{"$f":"DATEDIF($AJ7,$AK7,\"D\")","v":0},{"$f":"DATEDIF($AJ7,$AK7,\"M\")","v":0},{"$f":"DATEDIF($AJ7,$AK7,\"Y\")","v":0},null,null,null,null,null,null,null,null,null,null,null,null,{"$f":"SUM(AO7:AZ7)","v":0},null,null,null,null,null,null,null,null,null,null,null,null,{"$f":"SUM(BB7:BM7)","v":0},null,null,null,null,null,null,null,null,null,null,null,null,{"$f":"SUM(BO7:BZ7)","v":0},null,null,null,null,null,null,null,null,null,null,null,null,{"$f":"SUM(CB7:CM7)","v":0},null,null,null,null,null,null,null,null,null,null,null,null,{"$f":"SUM(CO7:CZ7)","v":0},null,null,null,null,null,null,null,null,null,null,null,null,null,{"$f":"SUM(DB7:DM7)","v":0},{"$f":"+BA7+BN7+CA7+CN7+DA7+DO7","v":0},null,null,null,null,null,null,null,null,null,null,null,null,null,{"$f":"SUM(DQ7:EB7)","v":0},null,null,null,null,null,null,{"$f":"DATEDIF($E7,$EJ7,\"D\")","v":0},{"$f":"DATEDIF($E7,$EJ7,\"M\")","v":0},{"$f":"DATEDIF($E7,$EJ7,\"Y\")","v":0},{"$f":"COUNTA(#REF!)","v":1},{"$f":"COUNTA(AO7:DJ7)","v":5},{"$f":"EO7-EN7","v":4}]
[null,null,null,null,null,null,null,null,null,null,null,null,null,null,null,null,null,null,null,null,null,null,null,null,null,null,null,null,null,null,null,null,null,null,0,null,null,{"$f":"DATEDIF($AJ8,$AK8,\"D\")","v":0},{"$f":"DATEDIF($AJ8,$AK8,\"M\")","v":0},{"$f":"DATEDIF($AJ8,$AK8,\"Y\")","v":0},null,null,null,null,null,null,null,null,null,null,null,null,{"$f":"SUM(AO8:AZ8)","v":0},null,null,null,null,null,null,null,null,null,null,null,null,{"$f":"SUM(BB8:BM8)","v":0},null,null,null,null,null,null,null,null,null,null,null,null,{"$f":"SUM(BO8:BZ8)","v":0},null,null,null,null,null,null,null,null,null,null,null,null,{"$f":"SUM(CB8:CM8)","v":0},null,null,null,null,null,null,null,null,null,null,null,null,{"$f":"SUM(CO8:CZ8)","v":0},null,null,null,null,null,null,null,null,null,null,null,null,null,{"$f":"SUM(DB8:DM8)","v":0},{"$f":"+BA8+BN8+CA8+CN8+DA8+DO8","v":0},null,null,null,null,null,null,null,null,null,null,null,null,null,{"$f":"SUM(DQ8:EB8)","v":0},null,null,null,null,null,null,0,0,0,{"$f":"COUNTA(#REF!)","v":1},5,{"$f":"EO8-EN8","v":4}]
[null,null,null,null,null,null,null,null,null,null,null,null,null,null,null,null,null,null,null,null,null,null,null,null,null,null,null,null,null,null,null,null,null,null,0,null,null,0,0,0,null,null,null,null,null,null,null,null,null,null,null,null,0,null,null,null,null,null,null,null,null,null,null,null,null,0,null,null,null,null,null,null,null,null,null,null,null,null,0,null,null,null,null,null,null,null,null,null,null,null,null,0,null,null,null,null,null,null,null,null,null,null,null,null,0,null,null,null,null,null,null,null,null,null,null,null,null,null,{"$f":"SUM(DB9:DM9)","v":0},0,null,null,null,null,null,null,null,null,null,null,null,null,null,0,null,null,null,null,null,null,0,0,0,{"$f":"COUNTA(#REF!)","v":1},5,4]
[null,null,null,null,null,null,null,null,null,null,null,null,null,null,null,null,null,null,null,null,null,null,null,null,null,null,null,null,null,null,null,null,null,null,0,null,null,0,0,0,null,null,null,null,null,null,null,null,null,null,null,null,0,null,null,null,null,null,null,null,null,null,null,null,null,0,null,null,null,null,null,null,null,null,null,null,null,null,0,null,null,null,null,null,null,null,null,null,null,null,null,0,null,null,null,null,null,null,null,null,null,null,null,null,0,null,null,null,null,null,null,null,null,null,null,null,null,null,0,0,null,null,null,null,null,null,null,null,null,null,null,null,null,0,null,null,null,null,null,null,0,0,0,{"$f":"COUNTA(#REF!)","v":1},5,4]
[null,null,null,null,null,null,null,null,null,null,null,null,null,null,null,null,null,null,null,null,null,null,null,null,null,null,null,null,null,null,null,null,null,null,0,null,null,0,0,0,null,null,null,null,null,null,null,null,null,null,null,null,0,null,null,null,null,null,null,null,null,null,null,null,null,0,null,null,null,null,null,null,null,null,null,null,null,null,0,null,null,null,null,null,null,null,null,null,null,null,null,0,null,null,null,null,null,null,null,null,null,null,null,null,0,null,null,null,null,null,null,null,null,null,null,null,null,null,0,0,null,null,null,null,null,null,null,null,null,null,null,null,null,0,null,null,null,null,null,null,0,0,0,{"$f":"COUNTA(#REF!)","v":1},5,4]
[null,null,null,null,null,null,null,null,null,null,null,null,null,null,null,null,null,null,null,null,null,null,null,null,null,null,null,null,null,null,null,null,null,null,0,null,null,0,0,0,null,null,null,null,null,null,null,null,null,null,null,null,0,null,null,null,null,null,null,null,null,null,null,null,null,0,null,null,null,null,null,null,null,null,null,null,null,null,0,null,null,null,null,null,null,null,null,null,null,null,null,0,null,null,null,null,null,null,null,null,null,null,null,null,0,null,null,null,null,null,null,null,null,null,null,null,null,null,0,0,null,null,null,null,null,null,null,null,null,null,null,null,null,0,null,null,null,null,null,null,0,0,0,{"$f":"COUNTA(#REF!)","v":1},5,4]
[null,null,null,null,null,null,null,null,null,null,null,null,null,null,null,null,null,null,null,null,null,null,null,null,null,null,null,null,null,null,null,null,null,null,0,null,null,0,0,0,null,null,null,null,null,null,null,null,null,null,null,null,0,null,null,null,null,null,null,null,null,null,null,null,null,0,null,null,null,null,null,null,null,null,null,null,null,null,0,null,null,null,null,null,null,null,null,null,null,null,null,0,null,null,null,null,null,null,null,null,null,null,null,null,0,null,null,null,null,null,null,null,null,null,null,null,null,null,0,0,null,null,null,null,null,null,null,null,null,null,null,null,null,0,null,null,null,null,null,null,0,0,0,{"$f":"COUNTA(#REF!)","v":1},5,4]
[null,null,null,null,null,null,null,null,null,null,null,null,null,null,null,null,null,null,null,null,null,null,null,null,null,null,null,null,null,null,null,null,null,null,0,null,null,0,0,0,null,null,null,null,null,null,null,null,null,null,null,null,0,null,null,null,null,null,null,null,null,null,null,null,null,0,null,null,null,null,null,null,null,null,null,null,null,null,0,null,null,null,null,null,null,null,null,null,null,null,null,0,null,null,null,null,null,null,null,null,null,null,null,null,0,null,null,null,null,null,null,null,null,null,null,null,null,null,0,0,null,null,null,null,null,null,null,null,null,null,null,null,null,0,null,null,null,null,null,null,0,0,0,{"$f":"COUNTA(#REF!)","v":1},5,4]
[null,null,null,null,null,null,null,null,null,null,null,null,null,null,null,null,null,null,null,null,null,null,null,null,null,null,null,null,null,null,null,null,null,null,0,null,null,0,0,0,null,null,null,null,null,null,null,null,null,null,null,null,0,null,null,null,null,null,null,null,null,null,null,null,null,0,null,null,null,null,null,null,null,null,null,null,null,null,0,null,null,null,null,null,null,null,null,null,null,null,null,0,null,null,null,null,null,null,null,null,null,null,null,null,0,null,null,null,null,null,null,null,null,null,null,null,null,null,0,0,null,null,null,null,null,null,null,null,null,null,null,null,null,0,null,null,null,null,null,null,0,0,0,{"$f":"COUNTA(#REF!)","v":1},5,4]
[null,null,null,null,null,null,null,null,null,null,null,null,null,null,null,null,null,null,null,null,null,null,null,null,null,null,null,null,null,null,null,null,null,null,0,null,null,0,0,0,null,null,null,null,null,null,null,null,null,null,null,null,0,null,null,null,null,null,null,null,null,null,null,null,null,0,null,null,null,null,null,null,null,null,null,null,null,null,0,null,null,null,null,null,null,null,null,null,null,null,null,0,null,null,null,null,null,null,null,null,null,null,null,null,0,null,null,null,null,null,null,null,null,null,null,null,null,null,0,0,null,null,null,null,null,null,null,null,null,null,null,null,null,0,null,null,null,null,null,null,0,0,0,{"$f":"COUNTA(#REF!)","v":1},5,4]
[null,null,null,null,null,null,null,null,null,null,null,null,null,null,null,null,null,null,null,null,null,null,null,null,null,null,null,null,null,null,null,null,null,null,0,null,null,0,0,0,null,null,null,null,null,null,null,null,null,null,null,null,0,null,null,null,null,null,null,null,null,null,null,null,null,0,null,null,null,null,null,null,null,null,null,null,null,null,0,null,null,null,null,null,null,null,null,null,null,null,null,0,null,null,null,null,null,null,null,null,null,null,null,null,0,null,null,null,null,null,null,null,null,null,null,null,null,null,0,0,null,null,null,null,null,null,null,null,null,null,null,null,null,0,null,null,null,null,null,null,0,0,0,{"$f":"COUNTA(#REF!)","v":1},5,4]
[null,null,null,null,null,null,null,null,null,null,null,null,null,null,null,null,null,null,null,null,null,null,null,null,null,null,null,null,null,null,null,null,null,null,{"$f":"COUNTA(F18:AG18)","v":0},null,null,{"$f":"DATEDIF($AJ18,$AK18,\"D\")","v":0},{"$f":"DATEDIF($AJ18,$AK18,\"M\")","v":0},{"$f":"DATEDIF($AJ18,$AK18,\"Y\")","v":0},null,null,null,null,null,null,null,null,null,null,null,null,{"$f":"SUM(AO18:AZ18)","v":0},null,null,null,null,null,null,null,null,null,null,null,null,{"$f":"SUM(BB18:BM18)","v":0},null,null,null,null,null,null,null,null,null,null,null,null,{"$f":"SUM(BO18:BZ18)","v":0},null,null,null,null,null,null,null,null,null,null,null,null,{"$f":"SUM(CB18:CM18)","v":0},null,null,null,null,null,null,null,null,null,null,null,null,{"$f":"SUM(CO18:CZ18)","v":0},null,null,null,null,null,null,null,null,null,null,null,null,null,{"$f":"SUM(DB18:DM18)","v":0},{"$f":"+BA18+BN18+CA18+CN18+DA18+DO18","v":0},null,null,null,null,null,null,null,null,null,null,null,null,null,{"$f":"SUM(DQ18:EB18)","v":0},null,null,null,null,null,null,0,0,0,{"$f":"COUNTA(#REF!)","v":1},5,{"$f":"EO18-EN18","v":4}]
[null,null,null,null,null,null,null,null,null,null,null,null,null,null,null,null,null,null,null,null,null,null,null,null,null,null,null,null,null,null,null,null,null,null,0,null,null,0,0,0,null,null,null,null,null,null,null,null,null,null,null,null,{"$f":"SUM(AO19:AZ19)","v":0},null,null,null,null,null,null,null,null,null,null,null,null,{"$f":"SUM(BB19:BM19)","v":0},null,null,null,null,null,null,null,null,null,null,null,null,{"$f":"SUM(BO19:BZ19)","v":0},null,null,null,null,null,null,null,null,null,null,null,null,{"$f":"SUM(CB19:CM19)","v":0},null,null,null,null,null,null,null,null,null,null,null,null,{"$f":"SUM(CO19:CZ19)","v":0},null,null,null,null,null,null,null,null,null,null,null,null,null,{"$f":"SUM(DB19:DM19)","v":0},{"$f":"+BA19+BN19+CA19+CN19+DA19+DO19","v":0},null,null,null,null,null,null,null,null,null,null,null,null,null,{"$f":"SUM(DQ19:EB19)","v":0},null,null,null,null,null,null,0,0,0,{"$f":"COUNTA(#REF!)","v":1},5,{"$f":"EO19-EN19","v":4}]
[null,null,null,null,null,null,null,null,null,null,null,null,null,null,null,null,null,null,null,null,null,null,null,null,null,null,null,null,null,null,null,null,null,null,0,null,null,0,0,0,null,null,null,null,null,null,null,null,null,null,null,null,0,null,null,null,null,null,null,null,null,null,null,null,null,0,null,null,null,null,null,null,null,null,null,null,null,null,0,null,null,null,null,null,null,null,null,null,null,null,null,0,null,null,null,null,null,null,null,null,null,null,null,null,0,null,null,null,null,null,null,null,null,null,null,null,null,null,{"$f":"SUM(DB20:DM20)","v":0},0,null,null,null,null,null,null,null,null,null,null,null,null,null,0,null,null,null,null,null,null,0,0,0,{"$f":"COUNTA(#REF!)","v":1},5,4]
[null,null,null,null,null,null,null,null,null,null,null,null,null,null,null,null,null,null,null,null,null,null,null,null,null,null,null,null,null,null,null,null,null,null,0,null,null,0,0,0,null,null,null,null,null,null,null,null,null,null,null,null,0,null,null,null,null,null,null,null,null,null,null,null,null,0,null,null,null,null,null,null,null,null,null,null,null,null,0,null,null,null,null,null,null,null,null,null,null,null,null,0,null,null,null,null,null,null,null,null,null,null,null,null,0,null,null,null,null,null,null,null,null,null,null,null,null,null,{"$f":"SUM(DB21:DM21)","v":0},0,null,null,null,null,null,null,null,null,null,null,null,null,null,0,null,null,null,null,null,null,0,0,0,{"$f":"COUNTA(#REF!)","v":1},5,4]
[null,null,null,null,null,null,null,null,null,null,null,null,null,null,null,null,null,null,null,null,null,null,null,null,null,null,null,null,null,null,null,null,null,null,0,null,null,0,0,0,null,null,null,null,null,null,null,null,null,null,null,null,0,null,null,null,null,null,null,null,null,null,null,null,null,0,null,null,null,null,null,null,null,null,null,null,null,null,0,null,null,null,null,null,null,null,null,null,null,null,null,0,null,null,null,null,null,null,null,null,null,null,null,null,0,null,null,null,null,null,null,null,null,null,null,null,null,null,0,0,null,null,null,null,null,null,null,null,null,null,null,null,null,0,null,null,null,null,null,null,0,0,0,{"$f":"COUNTA(#REF!)","v":1},5,4]
[null,null,null,null,null,null,null,null,null,null,null,null,null,null,null,null,null,null,null,null,null,null,null,null,null,null,null,null,null,null,null,null,null,null,0,null,null,0,0,0,null,null,null,null,null,null,null,null,null,null,null,null,0,null,null,null,null,null,null,null,null,null,null,null,null,0,null,null,null,null,null,null,null,null,null,null,null,null,0,null,null,null,null,null,null,null,null,null,null,null,null,0,null,null,null,null,null,null,null,null,null,null,null,null,0,null,null,null,null,null,null,null,null,null,null,null,null,null,0,0,null,null,null,null,null,null,null,null,null,null,null,null,null,0,null,null,null,null,null,null,0,0,0,{"$f":"COUNTA(#REF!)","v":1},5,4]
[null,null,null,null,null,null,null,null,null,null,null,null,null,null,null,null,null,null,null,null,null,null,null,null,null,null,null,null,null,null,null,null,null,null,0,null,null,0,0,0,null,null,null,null,null,null,null,null,null,null,null,null,0,null,null,null,null,null,null,null,null,null,null,null,null,0,null,null,null,null,null,null,null,null,null,null,null,null,0,null,null,null,null,null,null,null,null,null,null,null,null,0,null,null,null,null,null,null,null,null,null,null,null,null,0,null,null,null,null,null,null,null,null,null,null,null,null,null,0,0,null,null,null,null,null,null,null,null,null,null,null,null,null,0,null,null,null,null,null,null,0,0,0,{"$f":"COUNTA(#REF!)","v":1},5,4]
[null,null,null,null,null,null,null,null,null,null,null,null,null,null,null,null,null,null,null,null,null,null,null,null,null,null,null,null,null,null,null,null,null,null,0,null,null,0,0,0,null,null,null,null,null,null,null,null,null,null,null,null,0,null,null,null,null,null,null,null,null,null,null,null,null,0,null,null,null,null,null,null,null,null,null,null,null,null,0,null,null,null,null,null,null,null,null,null,null,null,null,0,null,null,null,null,null,null,null,null,null,null,null,null,0,null,null,null,null,null,null,null,null,null,null,null,null,null,0,0,null,null,null,null,null,null,null,null,null,null,null,null,null,0,null,null,null,null,null,null,0,0,0,{"$f":"COUNTA(#REF!)","v":1},5,4]
[null,null,null,null,null,null,null,null,null,null,null,null,null,null,null,null,null,null,null,null,null,null,null,null,null,null,null,null,null,null,null,null,null,null,0,null,null,0,0,0,null,null,null,null,null,null,null,null,null,null,null,null,0,null,null,null,null,null,null,null,null,null,null,null,null,0,null,null,null,null,null,null,null,null,null,null,null,null,0,null,null,null,null,null,null,null,null,null,null,null,null,0,null,null,null,null,null,null,null,null,null,null,null,null,0,null,null,null,null,null,null,null,null,null,null,null,null,null,0,0,null,null,null,null,null,null,null,null,null,null,null,null,null,0,null,null,null,null,null,null,0,0,0,{"$f":"COUNTA(#REF!)","v":1},5,4]
[null,null,null,null,null,null,null,null,null,null,null,null,null,null,null,null,null,null,null,null,null,null,null,null,null,null,null,null,null,null,null,null,null,null,0,null,null,0,0,0,null,null,null,null,null,null,null,null,null,null,null,null,0,null,null,null,null,null,null,null,null,null,null,null,null,0,null,null,null,null,null,null,null,null,null,null,null,null,0,null,null,null,null,null,null,null,null,null,null,null,null,0,null,null,null,null,null,null,null,null,null,null,null,null,0,null,null,null,null,null,null,null,null,null,null,null,null,null,0,0,null,null,null,null,null,null,null,null,null,null,null,null,null,0,null,null,null,null,null,null,0,0,0,{"$f":"COUNTA(#REF!)","v":1},5,4]
[null,null,null,null,null,null,null,null,null,null,null,null,null,null,null,null,null,null,null,null,null,null,null,null,null,null,null,null,null,null,null,null,null,null,0,null,null,0,0,0,null,null,null,null,null,null,null,null,null,null,null,null,0,null,null,null,null,null,null,null,null,null,null,null,null,0,null,null,null,null,null,null,null,null,null,null,null,null,0,null,null,null,null,null,null,null,null,null,null,null,null,0,null,null,null,null,null,null,null,null,null,null,null,null,0,null,null,null,null,null,null,null,null,null,null,null,null,null,0,0,null,null,null,null,null,null,null,null,null,null,null,null,null,0,null,null,null,null,null,null,0,0,0,{"$f":"COUNTA(#REF!)","v":1},5,4]
[null,null,null,null,null,null,null,null,null,null,null,null,null,null,null,null,null,null,null,null,null,null,null,null,null,null,null,null,null,null,null,null,null,null,0,null,null,{"$f":"DATEDIF($AJ29,$AK29,\"D\")","v":0},{"$f":"DATEDIF($AJ29,$AK29,\"M\")","v":0},{"$f":"DATEDIF($AJ29,$AK29,\"Y\")","v":0},null,null,null,null,null,null,null,null,null,null,null,null,{"$f":"SUM(AO29:AZ29)","v":0},null,null,null,null,null,null,null,null,null,null,null,null,{"$f":"SUM(BB29:BM29)","v":0},null,null,null,null,null,null,null,null,null,null,null,null,{"$f":"SUM(BO29:BZ29)","v":0},null,null,null,null,null,null,null,null,null,null,null,null,{"$f":"SUM(CB29:CM29)","v":0},null,null,null,null,null,null,null,null,null,null,null,null,{"$f":"SUM(CO29:CZ29)","v":0},null,null,null,null,null,null,null,null,null,null,null,null,null,{"$f":"SUM(DB29:DM29)","v":0},{"$f":"+BA29+BN29+CA29+CN29+DA29+DO29","v":0},null,null,null,null,null,null,null,null,null,null,null,null,null,{"$f":"SUM(DQ29:EB29)","v":0},null,null,null,null,null,null,0,0,0,{"$f":"COUNTA(#REF!)","v":1},5,{"$f":"EO29-EN29","v":4}]
[null,null,null,null,null,null,null,null,null,null,null,null,null,null,null,null,null,null,null,null,null,null,null,null,null,null,null,null,null,null,null,null,null,null,0,null,null,0,0,0,null,null,null,null,null,null,null,null,null,null,null,null,{"$f":"SUM(AO30:AZ30)","v":0},null,null,null,null,null,null,null,null,null,null,null,null,{"$f":"SUM(BB30:BM30)","v":0},null,null,null,null,null,null,null,null,null,null,null,null,{"$f":"SUM(BO30:BZ30)","v":0},null,null,null,null,null,null,null,null,null,null,null,null,{"$f":"SUM(CB30:CM30)","v":0},null,null,null,null,null,null,null,null,null,null,null,null,{"$f":"SUM(CO30:CZ30)","v":0},null,null,null,null,null,null,null,null,null,null,null,null,null,{"$f":"SUM(DB30:DM30)","v":0},{"$f":"+BA30+BN30+CA30+CN30+DA30+DO30","v":0},null,null,null,null,null,null,null,null,null,null,null,null,null,{"$f":"SUM(DQ30:EB30)","v":0},null,null,null,null,null,null,0,0,0,{"$f":"COUNTA(#REF!)","v":1},5,{"$f":"EO30-EN30","v":4}]
[null,null,null,null,null,null,null,null,null,null,null,null,null,null,null,null,null,null,null,null,null,null,null,null,null,null,null,null,null,null,null,null,null,null,0,null,null,0,0,0,null,null,null,null,null,null,null,null,null,null,null,null,0,null,null,null,null,null,null,null,null,null,null,null,null,0,null,null,null,null,null,null,null,null,null,null,null,null,0,null,null,null,null,null,null,null,null,null,null,null,null,0,null,null,null,null,null,null,null,null,null,null,null,null,0,null,null,null,null,null,null,null,null,null,null,null,null,null,{"$f":"SUM(DB31:DM31)","v":0},0,null,null,null,null,null,null,null,null,null,null,null,null,null,0,null,null,null,null,null,null,0,0,0,{"$f":"COUNTA(#REF!)","v":1},5,4]
[null,null,null,null,null,null,null,null,null,null,null,null,null,null,null,null,null,null,null,null,null,null,null,null,null,null,null,null,null,null,null,null,null,null,0,null,null,0,0,0,null,null,null,null,null,null,null,null,null,null,null,null,0,null,null,null,null,null,null,null,null,null,null,null,null,0,null,null,null,null,null,null,null,null,null,null,null,null,0,null,null,null,null,null,null,null,null,null,null,null,null,0,null,null,null,null,null,null,null,null,null,null,null,null,0,null,null,null,null,null,null,null,null,null,null,null,null,null,{"$f":"SUM(DB32:DM32)","v":0},0,null,null,null,null,null,null,null,null,null,null,null,null,null,0,null,null,null,null,null,null,0,0,0,{"$f":"COUNTA(#REF!)","v":1},5,4]
[null,null,null,null,null,null,null,null,null,null,null,null,null,null,null,null,null,null,null,null,null,null,null,null,null,null,null,null,null,null,null,null,null,null,0,null,null,0,0,0,null,null,null,null,null,null,null,null,null,null,null,null,0,null,null,null,null,null,null,null,null,null,null,null,null,0,null,null,null,null,null,null,null,null,null,null,null,null,0,null,null,null,null,null,null,null,null,null,null,null,null,0,null,null,null,null,null,null,null,null,null,null,null,null,0,null,null,null,null,null,null,null,null,null,null,null,null,null,0,0,null,null,null,null,null,null,null,null,null,null,null,null,null,0,null,null,null,null,null,null,0,0,0,{"$f":"COUNTA(#REF!)","v":1},5,4]
[null,null,null,null,null,null,null,null,null,null,null,null,null,null,null,null,null,null,null,null,null,null,null,null,null,null,null,null,null,null,null,null,null,null,0,null,null,0,0,0,null,null,null,null,null,null,null,null,null,null,null,null,0,null,null,null,null,null,null,null,null,null,null,null,null,0,null,null,null,null,null,null,null,null,null,null,null,null,0,null,null,null,null,null,null,null,null,null,null,null,null,0,null,null,null,null,null,null,null,null,null,null,null,null,0,null,null,null,null,null,null,null,null,null,null,null,null,null,0,0,null,null,null,null,null,null,null,null,null,null,null,null,null,0,null,null,null,null,null,null,0,0,0,{"$f":"COUNTA(#REF!)","v":1},5,4]
[null,null,null,null,null,null,null,null,null,null,null,null,null,null,null,null,null,null,null,null,null,null,null,null,null,null,null,null,null,null,null,null,null,null,0,null,null,0,0,0,null,null,null,null,null,null,null,null,null,null,null,null,0,null,null,null,null,null,null,null,null,null,null,null,null,0,null,null,null,null,null,null,null,null,null,null,null,null,0,null,null,null,null,null,null,null,null,null,null,null,null,0,null,null,null,null,null,null,null,null,null,null,null,null,0,null,null,null,null,null,null,null,null,null,null,null,null,null,0,0,null,null,null,null,null,null,null,null,null,null,null,null,null,0,null,null,null,null,null,null,0,0,0,{"$f":"COUNTA(#REF!)","v":1},5,4]
[null,null,null,null,null,null,null,null,null,null,null,null,null,null,null,null,null,null,null,null,null,null,null,null,null,null,null,null,null,null,null,null,null,null,0,null,null,0,0,0,null,null,null,null,null,null,null,null,null,null,null,null,0,null,null,null,null,null,null,null,null,null,null,null,null,0,null,null,null,null,null,null,null,null,null,null,null,null,0,null,null,null,null,null,null,null,null,null,null,null,null,0,null,null,null,null,null,null,null,null,null,null,null,null,0,null,null,null,null,null,null,null,null,null,null,null,null,null,0,0,null,null,null,null,null,null,null,null,null,null,null,null,null,0,null,null,null,null,null,null,0,0,0,{"$f":"COUNTA(#REF!)","v":1},5,4]
[null,null,null,null,null,null,null,null,null,null,null,null,null,null,null,null,null,null,null,null,null,null,null,null,null,null,null,null,null,null,null,null,null,null,0,null,null,0,0,0,null,null,null,null,null,null,null,null,null,null,null,null,0,null,null,null,null,null,null,null,null,null,null,null,null,0,null,null,null,null,null,null,null,null,null,null,null,null,0,null,null,null,null,null,null,null,null,null,null,null,null,0,null,null,null,null,null,null,null,null,null,null,null,null,0,null,null,null,null,null,null,null,null,null,null,null,null,null,0,0,null,null,null,null,null,null,null,null,null,null,null,null,null,0,null,null,null,null,null,null,0,0,0,{"$f":"COUNTA(#REF!)","v":1},5,4]
[null,null,null,null,null,null,null,null,null,null,null,null,null,null,null,null,null,null,null,null,null,null,null,null,null,null,null,null,null,null,null,null,null,null,0,null,null,0,0,0,null,null,null,null,null,null,null,null,null,null,null,null,0,null,null,null,null,null,null,null,null,null,null,null,null,0,null,null,null,null,null,null,null,null,null,null,null,null,0,null,null,null,null,null,null,null,null,null,null,null,null,0,null,null,null,null,null,null,null,null,null,null,null,null,0,null,null,null,null,null,null,null,null,null,null,null,null,null,0,0,null,null,null,null,null,null,null,null,null,null,null,null,null,0,null,null,null,null,null,null,0,0,0,{"$f":"COUNTA(#REF!)","v":1},5,4]
[null,null,null,null,null,null,null,null,null,null,null,null,null,null,null,null,null,null,null,null,null,null,null,null,null,null,null,null,null,null,null,null,null,null,0,null,null,0,0,0,null,null,null,null,null,null,null,null,null,null,null,null,0,null,null,null,null,null,null,null,null,null,null,null,null,0,null,null,null,null,null,null,null,null,null,null,null,null,0,null,null,null,null,null,null,null,null,null,null,null,null,0,null,null,null,null,null,null,null,null,null,null,null,null,0,null,null,null,null,null,null,null,null,null,null,null,null,null,0,0,null,null,null,null,null,null,null,null,null,null,null,null,null,0,null,null,null,null,null,null,0,0,0,{"$f":"COUNTA(#REF!)","v":1},5,4]